bitfinex-derivatives/quotes_BNBF0:USTF0_20250116
["timestamp","ask_amount","ask_price","bid_price","bid_amount"]
[1736989273861,0.25880399,710.66,708.74,8.96819093]
[1736989274055,0.28143249,710.65,708.74,8.96819093]
[1736989274258,0.25880399,710.64,708.74,8.96819093]
[1736989274458,3.37818035,710.63,708.74,8.96819093]
[1736989274761,3.63699291,710.62,708.74,8.96819093]
[1736989274954,3.63699687,710.61,708.74,8.96819093]
[1736989275156,3.63700083,710.6,708.74,8.96819093]
[1736989275463,1.47089384,710.71,708.74,8.96819093]
[1736989275464,3.63700479,710.59,708.74,8.96819093]
[1736989275653,3.09673994,710.58,708.74,8.96819093]
[1736989275855,3.37820411,710.57,708.74,8.96819093]
[1736989276161,3.37798689,710.56,708.74,8.96819093]
[1736989276363,3.37799085,710.55,708.74,8.96819093]
[1736989276562,3.09651876,710.54,708.74,8.96819093]
[1736989276758,3.09651876,710.53,708.74,8.96819093]
[1736989276959,3.09651876,710.52,708.74,8.96819093]
[1736989277158,3.3780067,710.51,708.74,8.96819093]
[1736989277362,3.37801066,710.5,708.74,8.96819093]
[1736989277563,3.09651876,710.49,708.74,8.96819093]
[1736989277758,3.37801859,710.48,708.74,7.84019093]
[1736989277959,0.28150379,710.47,708.74,7.84019093]
[1736989278158,3.09582093,710.46,708.74,7.84019093]
[1736989278465,3.63618889,710.45,708.74,7.84019093]
[1736989278663,3.09582093,710.44,708.74,7.84019093]
[1736989278858,3.35468251,710.43,708.74,7.84019093]
[1736989279165,3.37734453,710.42,708.74,7.84019093]
[1736989279365,3.37734849,710.41,708.74,7.84019093]
[1736989279561,3.37735246,710.4,708.74,7.84019093]
[1736989279763,3.09582093,710.39,708.74,7.84019093]
[1736989279963,3.37698989,710.38,708.74,7.84019093]
[1736989280163,3.37699386,710.37,708.74,7.84019093]
[1736989280366,3.37699782,710.36,708.74,7.84019093]
[1736989280565,3.37701141,710.35,708.74,7.84019093]
[1736989280765,3.37701538,710.34,708.74,8.96819093]
[1736989280966,3.37701934,710.33,708.74,8.96819093]
[1736989281163,3.3770233,710.32,708.74,8.96819093]
[1736989281369,3.37702727,710.31,708.74,8.96819093]
[1736989281664,3.37703123,710.3,708.74,8.96819093]
[1736989281970,3.3770352,710.29,708.74,8.96819093]
[1736989282170,3.37703916,710.28,708.74,8.96819093]
[1736989282364,3.37704312,710.27,708.74,8.96819093]
[1736989282565,3.09546007,710.26,708.74,8.96819093]
[1736989282764,3.09546007,710.25,708.74,6.93419093]
[1736989282970,3.09546007,710.24,708.74,6.93419093]
[1736989283166,3.09546007,710.23,708.74,5.09619093]
[1736989283368,0.28158305,710.27,708.74,5.09619093]
[1736989283369,3.09546007,710.22,708.74,5.09619093]
[1736989283671,3.09546007,710.21,708.74,5.09619093]
[1736989283970,3.09546007,710.2,708.74,5.09619093]
[1736989284170,3.09546007,710.19,708.74,5.09619093]
[1736989284469,3.09546007,710.18,708.74,5.09619093]
[1736989284670,3.09546007,710.17,708.74,5.09619093]
[1736989284869,3.09546007,710.16,708.74,2.53819093]
[1736989285069,3.09546007,710.15,708.74,2.53819093]
[1736989285268,3.09546007,710.14,708.74,2.53819093]
[1736989285464,3.09546007,710.13,708.74,2.53819093]
[1736989285668,3.09546007,710.12,708.74,2.53819093]
[1736989285862,0.28158305,710.27,708.74,2.53819093]
[1736989285863,3.09546007,710.11,708.74,2.53819093]
[1736989286070,3.09546007,710.1,708.74,2.53819093]
[1736989286365,3.09594306,710.09,708.74,4.16619093]
[1736989286564,0.28158305,710.27,708.74,4.16619093]
[1736989286565,3.09594306,710.08,708.74,4.16619093]
[1736989286765,3.09594306,710.07,708.74,4.16619093]
[1736989286968,1.88794166,710.06,708.74,4.16619093]
[1736989287266,1.88794166,710.05,708.74,4.16619093]
[1736989287566,1.88794166,710.04,708.74,4.16619093]
[1736989287772,1.88803521,710.03,708.74,4.16619093]
[1736989287972,1.88803521,710.02,708.74,7.33219093]
[1736989288272,1.88803521,710.01,708.74,7.33219093]
[1736989288573,0.28158305,710.27,708.74,7.33219093]
[1736989288869,3.09613836,710.26,708.74,7.33219093]
[1736989289068,3.09613836,710.25,708.74,7.33219093]
[1736989289269,3.09613836,710.24,708.74,7.33219093]
[1736989289571,3.09613836,710.23,708.74,7.33219093]
[1736989289771,3.09595191,710.22,708.74,7.33219093]
[1736989289975,3.09595191,710.21,708.74,7.33219093]
[1736989290173,3.09595191,710.2,708.74,7.33219093]
[1736989290472,0.28158305,710.27,708.74,7.33219093]
[1736989290473,1.88799273,710.19,708.74,7.33219093]
[1736989290672,1.88799273,710.18,708.74,7.33219093]
[1736989290873,1.88731436,710.17,708.74,7.33219093]
[1736989291072,1.88731436,710.16,708.74,7.33219093]
[1736989291266,1.88731436,710.15,708.74,7.33219093]
[1736989291472,0.28158305,710.27,708.74,7.33219093]
[1736989291674,0.75466303,710.26,708.74,7.33219093]
[1736989291874,1.88716499,710.25,708.74,7.33219093]
[1736989292075,1.88716499,710.24,708.74,7.33219093]
[1736989292268,1.88736831,710.23,708.75,2.78356785]
[1736989292574,1.88736831,710.22,708.75,2.78356785]
[1736989292771,1.04450284,710.8,708.75,2.78356785]
[1736989292972,3.35327621,710.79,708.75,2.78356785]
[1736989293275,1.04450284,710.77,708.75,2.78356785]
[1736989293574,3.35327621,710.76,708.74,6.20419093]
[1736989293769,3.35243513,710.75,708.74,6.20419093]
[1736989293968,3.35243513,710.74,708.76,0.28218296]
[1736989294172,0.28138101,710.78,708.76,0.28218296]
[1736989294173,3.35243513,710.73,708.76,0.28218296]
[1736989294473,3.6338399,710.72,708.76,0.28218296]
[1736989294667,3.63384386,710.71,708.76,0.28218296]
[1736989294868,3.63384782,710.7,708.76,0.28218296]
[1736989295069,3.63385178,710.69,708.76,0.28218296]
[1736989295271,3.63385574,710.68,708.76,0.28218296]
[1736989295471,3.09366875,710.67,708.76,0.28218296]
[1736989295772,3.35242731,710.66,708.76,0.28218296]
[1736989295968,3.35242731,710.65,708.76,1.41018296]
[1736989296174,3.35242731,710.64,708.76,1.41018296]
[1736989296379,3.09366875,710.63,708.76,1.41018296]
[1736989296573,3.09366875,710.62,708.76,1.41018296]
[1736989296774,3.09366875,710.61,708.76,1.41018296]
[1736989296968,3.09366875,710.6,708.76,1.41018296]
[1736989297168,3.09366875,710.59,708.76,1.41018296]
[1736989297372,3.09366875,710.58,708.76,1.41018296]
[1736989297575,3.09170305,710.57,708.76,1.41018296]
[1736989297876,3.09170305,710.56,708.76,1.41018296]
[1736989298076,3.09170305,710.55,708.76,1.41018296]
[1736989298276,3.09170305,710.54,708.76,1.41018296]
[1736989298577,3.09170305,710.53,708.76,1.41018296]
[1736989298776,3.09170305,710.52,708.76,1.41018296]
[1736989298969,3.09170305,710.51,708.76,1.41018296]
[1736989299173,3.09170305,710.5,708.76,1.41018296]
[1736989299473,1.88304235,710.49,708.76,1.41018296]
[1736989299671,1.88304235,710.48,708.76,1.41018296]
[1736989299870,1.88304235,710.47,708.76,1.41018296]
[1736989300074,1.88304282,710.46,708.76,1.41018296]
[1736989300274,1.88304282,710.45,708.76,1.41018296]
[1736989300475,1.88304282,710.44,708.76,1.41018296]
[1736989300673,1.88304282,710.43,708.76,1.41018296]
[1736989300872,1.88304282,710.42,708.76,1.41018296]
[1736989301078,1.88304282,710.41,708.76,1.41018296]
[1736989301273,1.88304282,710.4,708.76,1.41018296]
[1736989301477,1.88304282,710.39,708.76,1.41018296]
[1736989301679,1.88304282,710.38,708.76,1.41018296]
[1736989301881,1.13002172,710.37,708.76,1.41018296]
[1736989302081,0.28142061,710.68,708.76,1.41018296]
[1736989302277,3.08642,710.67,708.76,1.41018296]
[1736989302474,3.08642,710.66,708.76,1.41018296]
[1736989302673,3.08642,710.65,708.76,1.41018296]
[1736989302879,3.08642,710.64,708.76,1.41018296]
[1736989303078,3.08642,710.63,708.76,1.41018296]
[1736989303275,3.08642,710.62,708.76,1.41018296]
[1736989303476,3.08517278,710.61,708.76,1.41018296]
[1736989303679,3.08517278,710.6,708.76,1.41018296]
[1736989303878,3.08517278,710.59,708.76,1.41018296]
[1736989304076,3.08517278,710.58,708.76,1.41018296]
[1736989304281,0.28142061,710.68,708.76,1.41018296]
[1736989304282,3.08517278,710.57,708.76,1.41018296]
[1736989304481,3.08517278,710.56,708.76,1.41018296]
[1736989304678,3.08517278,710.55,708.76,1.41018296]
[1736989304881,3.08517278,710.54,708.76,1.41018296]
[1736989305082,3.08517278,710.53,708.76,1.41018296]
[1736989305379,3.08471688,710.52,708.76,1.41018296]
[1736989305579,3.08471688,710.51,708.76,1.41018296]
[1736989305782,3.34348101,710.5,708.76,1.41018296]
[1736989305981,3.34348101,710.49,708.76,1.41018296]
[1736989306181,3.34348101,710.48,708.76,1.41018296]
[1736989306385,3.08471688,710.47,708.76,1.41018296]
[1736989306584,3.08471688,710.46,708.76,1.41018296]
[1736989306785,3.08471688,710.45,708.76,1.41018296]
[1736989306979,3.08471688,710.44,708.76,1.41018296]
[1736989307179,1.95568656,710.43,708.76,1.41018296]
[1736989307383,1.04450284,710.64,708.76,1.41018296]
[1736989307384,3.08418981,710.42,708.76,1.41018296]
[1736989307684,3.08418981,710.41,708.76,1.41018296]
[1736989307883,3.08411522,710.4,708.76,1.41018296]
[1736989308082,3.08411522,710.39,708.76,4.68318296]
[1736989308286,3.08411522,710.38,708.76,4.68318296]
[1736989308483,3.08369499,710.37,708.76,4.68318296]
[1736989308686,1.8806158,710.36,708.76,4.68318296]
[1736989308886,1.8806158,710.35,708.76,4.68318296]
[1736989309089,1.8806158,710.34,708.76,4.68318296]
[1736989309286,1.88057058,710.33,708.76,4.68318296]
[1736989309483,1.88057058,710.32,708.76,4.68318296]
[1736989309686,1.88057058,710.31,708.76,4.68318296]
[1736989309886,1.12838344,710.3,708.76,4.68318296]
[1736989310083,1.04450284,710.65,708.76,4.68318296]
[1736989310291,3.62348837,710.64,708.76,4.68318296]
[1736989310489,3.62349233,710.63,708.76,4.68318296]
[1736989310688,3.62349629,710.62,708.76,4.68318296]
[1736989310883,3.62350025,710.61,708.76,4.68318296]
[1736989311087,3.62350421,710.6,708.76,4.68318296]
[1736989311289,3.34205192,710.59,708.76,4.68318296]
[1736989311484,3.34205192,710.58,708.76,4.68318296]
[1736989311687,3.34205192,710.57,708.76,4.68318296]
[1736989311888,3.08328501,710.56,708.76,4.68318296]
[1736989312089,3.34204928,710.55,708.76,4.68318296]
[1736989312389,0.28145229,710.6,708.76,4.68318296]
[1736989312390,3.34204928,710.54,708.76,4.68318296]
[1736989312584,3.34204928,710.53,708.76,4.68318296]
[1736989312889,3.34204928,710.52,708.76,4.68318296]
[1736989313084,0.25876427,710.51,708.76,4.68318296]
[1736989313290,2.13884299,710.5,708.76,4.68318296]
[1736989313589,3.08302442,710.49,708.76,4.68318296]
[1736989313787,3.3417902,710.48,708.76,4.68318296]
[1736989314090,3.3417902,710.47,708.76,4.68318296]
[1736989314389,3.08302442,710.46,708.76,4.68318296]
[1736989314590,1.88007872,710.45,708.76,4.68318296]
[1736989314786,1.88007872,710.44,708.76,4.68318296]
[1736989314993,0.75184106,710.43,708.76,4.68318296]
[1736989315192,1.88078472,710.42,708.76,4.68318296]
[1736989315392,1.88078472,710.41,708.76,4.68318296]
[1736989315591,1.88206688,710.4,708.76,4.68318296]
[1736989315792,0.28145229,710.6,708.77,2.77598864]
[1736989315793,1.88206688,710.39,708.77,2.77598864]
[1736989315995,1.88206688,710.38,708.77,2.77598864]
[1736989316293,1.88206688,710.37,708.77,2.77598864]
[1736989316493,1.12943047,710.36,708.79,0.28217102]
[1736989316792,1.12986023,710.35,708.79,0.28217102]
[1736989316993,1.04450284,710.56,708.8,2.77598864]
[1736989317193,3.34624117,710.55,708.82,0.28215908]
[1736989317493,3.34624456,710.54,708.82,0.28215908]
[1736989317692,3.34624456,710.53,708.83,1.05465335]
[1736989317892,3.34624456,710.52,708.83,1.05465335]
[1736989318086,3.34624456,710.51,708.85,0.28214713]
[1736989318293,3.34624134,710.5,708.85,0.28214713]
[1736989318493,3.34624134,710.49,708.85,0.28214713]
[1736989318793,3.34624134,710.48,708.88,1.05465335]
[1736989319092,3.34624134,710.47,708.9,0.28212723]
[1736989319293,3.34624134,710.46,708.9,0.28212723]
[1736989319592,3.34624134,710.45,708.9,0.28212723]
[1736989319795,3.08747994,710.44,708.9,0.28212723]
[1736989319986,3.08747994,710.43,708.9,0.28212723]
[1736989320188,3.08747994,710.42,708.92,1.05465335]
[1736989320386,3.08747994,710.41,708.94,0.28211132]
[1736989320589,3.08747994,710.4,708.94,0.28211132]
[1736989320791,3.08747994,710.39,708.94,0.28211132]
[1736989320991,3.08747994,710.38,708.96,1.05465335]
[1736989321193,3.08747994,710.37,708.98,0.2820954]
[1736989321495,1.88279327,710.36,708.98,0.2820954]
[1736989321793,1.88279327,710.35,708.98,0.2820954]
[1736989322095,1.88279327,710.34,709.03,1.05465335]
[1736989322293,1.88279327,710.33,709.03,1.05465335]
[1736989322493,1.88635081,710.32,709.03,1.05465335]
[1736989322693,1.13200497,710.31,709.05,0.28206755]
[1736989322894,1.13200497,710.3,709.09,1.05465335]
[1736989323088,1.04450284,710.45,709.1,0.28204766]
[1736989323290,3.09345845,710.44,709.1,0.28204766]
[1736989323495,3.09345845,710.43,709.1,0.28204766]
[1736989323794,3.09345845,710.42,709.13,1.05465335]
[1736989323995,3.09345845,710.41,709.14,0.28203175]
[1736989324194,3.09345845,710.4,709.14,0.28203175]
[1736989324392,3.09505265,710.39,709.14,0.28203175]
[1736989324595,3.09505265,710.38,709.14,0.28203175]
[1736989324895,1.88705802,710.37,709.17,1.05465335]
[1736989325096,1.13206138,710.36,709.18,0.28201584]
[1736989325396,0.28145229,710.6,709.18,0.28201584]
[1736989325595,3.09731995,710.59,709.18,0.28201584]
[1736989325895,0.28145229,710.6,709.18,0.28201584]
[1736989325896,3.09731995,710.58,709.18,0.28201584]
[1736989326196,1.9638346,710.57,709.18,0.28201584]
[1736989326397,3.09736388,710.56,709.18,0.28201584]
[1736989326595,3.09736388,710.55,709.18,0.28201584]
[1736989326789,3.09736388,710.54,709.18,0.28201584]
[1736989326990,3.09736388,710.53,709.18,0.28201584]
[1736989327189,3.09736388,710.52,709.18,0.28201584]
[1736989327393,3.09736388,710.51,709.18,0.28201584]
[1736989327595,3.09785157,710.5,709.18,0.28201584]
[1736989327792,3.09785157,710.49,709.18,0.28201584]
[1736989327990,0.28145229,710.6,709.18,0.28201584]
[1736989327991,1.88885028,710.48,709.18,0.28201584]
[1736989328196,1.88952728,710.47,709.18,0.28201584]
[1736989328497,1.88952728,710.46,709.18,0.28201584]
[1736989328691,0.28145229,710.6,709.18,0.28201584]
[1736989328892,3.09916528,710.59,709.18,0.28201584]
[1736989329095,3.09916528,710.58,709.18,0.28201584]
[1736989329292,3.09916528,710.57,709.18,0.28201584]
[1736989329491,3.09916528,710.56,709.18,0.28201584]
[1736989329691,3.09916528,710.55,709.18,0.28201584]
[1736989329890,3.09916528,710.54,709.18,0.28201584]
[1736989330196,3.09916528,710.53,709.18,0.28201584]
[1736989330396,3.09916528,710.52,709.18,0.28201584]
[1736989330598,3.09916528,710.51,709.18,0.28201584]
[1736989330798,3.09916528,710.5,709.18,0.28201584]
[1736989330999,3.09916528,710.49,709.18,0.28201584]
[1736989331301,1.88993144,710.48,709.18,0.28201584]
[1736989331496,0.28145229,710.6,709.18,0.28201584]
[1736989331497,1.88993144,710.47,709.18,0.28201584]
[1736989331797,1.88993144,710.46,709.18,0.28201584]
[1736989331993,1.88993144,710.45,709.18,0.28201584]
[1736989332194,1.8899318,710.44,709.18,0.28201584]
[1736989332400,1.8899318,710.43,709.18,0.28201584]
[1736989332699,1.8899318,710.42,709.18,0.28201584]
[1736989332893,1.8899318,710.41,709.18,0.28201584]
[1736989333100,1.8899318,710.4,709.18,0.28201584]
[1736989333296,1.88985106,710.39,709.18,0.28201584]
[1736989333498,0.28145229,710.6,709.18,1.41001584]
[1736989333499,1.13415949,710.38,709.18,1.41001584]
[1736989333699,1.88980584,710.37,709.18,1.41001584]
[1736989333899,1.88980584,710.36,709.18,1.41001584]
[1736989334095,1.8895254,710.35,709.18,1.41001584]
[1736989334297,1.8895254,710.34,709.18,1.41001584]
[1736989334497,1.8895254,710.33,709.18,1.41001584]
[1736989334700,1.8895254,710.32,709.18,1.41001584]
[1736989334898,0.28145229,710.6,709.18,1.41001584]
[1736989335104,3.09796748,710.59,709.18,1.41001584]
[1736989335404,3.09796748,710.58,709.18,1.41001584]
[1736989335602,3.09796748,710.57,709.18,1.41001584]
[1736989335897,3.09796748,710.56,709.18,1.41001584]
[1736989336098,3.09696556,710.55,709.18,1.41001584]
[1736989336303,3.09696556,710.54,709.18,1.41001584]
[1736989336498,1.96355609,710.53,709.18,1.41001584]
[1736989336697,3.09687033,710.52,709.18,1.41001584]
[1736989336900,3.09687033,710.51,709.18,1.41001584]
[1736989337102,0.28145229,710.6,709.18,1.41001584]
[1736989337103,3.09687033,710.5,709.18,1.41001584]
[1736989337300,3.09687033,710.49,709.18,1.41001584]
[1736989337499,1.88852812,710.48,709.18,1.41001584]
[1736989337803,1.88852812,710.47,709.18,1.41001584]
[1736989338004,1.88845225,710.46,709.18,1.41001584]
[1736989338201,1.88845225,710.45,709.18,1.41001584]
[1736989338407,1.88845225,710.44,709.18,1.41001584]
[1736989338607,1.88845225,710.43,709.18,1.41001584]
[1736989338808,1.88845225,710.42,709.18,1.41001584]
[1736989339007,1.88845225,710.41,709.18,1.41001584]
[1736989339204,0.28145229,710.6,709.18,1.41001584]
[1736989339205,1.88845225,710.4,709.18,1.41001584]
[1736989339403,1.88845225,710.39,709.18,1.41001584]
[1736989339605,1.88856039,710.38,709.18,1.41001584]
[1736989339907,1.88854512,710.37,709.18,1.41001584]
[1736989340105,1.13326986,710.36,709.18,1.41001584]
[1736989340302,1.13326986,710.35,709.18,1.41001584]
[1736989340508,1.13357341,710.34,709.18,1.41001584]
[1736989340704,1.13353765,710.33,709.18,1.41001584]
[1736989340908,1.13352765,710.32,709.18,1.41001584]
[1736989341207,0.28145229,710.6,709.18,1.41001584]
[1736989341407,3.09750114,710.59,709.18,1.41001584]
[1736989341604,3.09750114,710.58,709.18,1.41001584]
[1736989341909,3.09836195,710.57,709.18,1.41001584]
[1736989342110,0.28145229,710.6,709.18,1.41001584]
[1736989342111,3.09836195,710.56,709.18,1.41001584]
[1736989342408,3.09836195,710.55,709.18,1.41001584]
[1736989342608,0.28145229,710.6,709.18,1.41001584]
[1736989342609,3.09836195,710.54,709.18,1.41001584]
[1736989342809,3.09836195,710.53,709.18,1.41001584]
[1736989343109,3.09836195,710.52,709.18,1.41001584]
[1736989343305,3.09836195,710.51,709.18,1.41001584]
[1736989343505,3.09836195,710.5,709.18,1.41001584]
[1736989343706,3.09984439,710.49,709.18,1.41001584]
[1736989343907,3.09984439,710.48,709.18,1.41001584]
[1736989344109,3.09984439,710.47,709.18,1.41001584]
[1736989344409,3.10203315,710.46,709.18,1.41001584]
[1736989344709,3.10203315,710.45,709.18,1.41001584]
[1736989344910,3.10203315,710.44,709.18,1.41001584]
[1736989345110,3.10203315,710.43,709.18,1.41001584]
[1736989345310,3.10203315,710.42,709.18,1.41001584]
[1736989345506,3.10203315,710.41,709.18,1.41001584]
[1736989345706,0.28145229,710.6,709.18,1.41001584]
[1736989346006,3.10311516,710.59,709.18,1.41001584]
[1736989346211,3.10311516,710.58,709.18,1.41001584]
[1736989346412,3.10311516,710.57,709.18,1.41001584]
[1736989346605,3.10311516,710.56,709.18,1.41001584]
[1736989346809,3.10311516,710.55,709.18,1.41001584]
[1736989347012,3.10311516,710.54,709.18,1.41001584]
[1736989347208,3.10311516,710.53,709.18,1.41001584]
[1736989347404,0.28145229,710.6,709.18,1.41001584]
[1736989347405,3.10393476,710.52,709.18,1.41001584]
[1736989347609,0.28145229,710.6,709.18,1.41001584]
[1736989347913,3.10532401,710.59,709.18,1.41001584]
[1736989348211,3.10532401,710.58,709.18,2.53801584]
[1736989348407,3.10532401,710.57,709.18,2.53801584]
[1736989348608,3.10532401,710.56,709.18,2.53801584]
[1736989348809,3.10532401,710.55,709.18,2.53801584]
[1736989349009,3.10532401,710.54,709.18,2.53801584]
[1736989349210,3.10532401,710.53,709.18,2.53801584]
[1736989349510,3.10532401,710.52,709.18,2.53801584]
[1736989349707,3.10532401,710.51,709.18,2.53801584]
[1736989349909,3.10532401,710.5,709.18,2.53801584]
[1736989350105,3.10532401,710.49,709.18,2.53801584]
[1736989350312,3.10532401,710.48,709.18,2.53801584]
[1736989350507,3.10532401,710.47,709.18,2.53801584]
[1736989350712,3.10532401,710.46,709.18,2.53801584]
[1736989350905,3.10532401,710.45,709.18,2.53801584]
[1736989351109,3.10618257,710.44,709.18,2.53801584]
[1736989351311,3.10618257,710.43,709.18,2.53801584]
[1736989351611,3.10618257,710.42,709.18,2.53801584]
[1736989351812,3.10618257,710.41,709.18,2.53801584]
[1736989352012,3.10618257,710.4,709.18,2.53801584]
[1736989352313,3.10657869,710.39,709.18,2.53801584]
[1736989352507,3.10657869,710.38,709.18,2.53801584]
[1736989352710,3.10657869,710.37,709.18,2.53801584]
[1736989352911,3.10657869,710.36,709.18,2.53801584]
[1736989353111,3.10657869,710.35,709.18,2.53801584]
[1736989353310,3.10657869,710.34,709.18,2.53801584]
[1736989353508,3.10657869,710.33,709.18,2.53801584]
[1736989353814,3.11005794,710.32,709.18,2.53801584]
[1736989354009,3.11005794,710.31,709.18,2.53801584]
[1736989354211,3.11005794,710.3,709.18,2.53801584]
[1736989354415,3.11005794,710.29,709.18,2.53801584]
[1736989354713,3.11005794,710.28,709.18,2.53801584]
[1736989354915,1.89656785,710.27,709.18,2.53801584]
[1736989355214,3.11015241,710.26,709.18,2.53801584]
[1736989355410,3.11015241,710.25,709.18,2.53801584]
[1736989355611,1.89656785,710.24,709.18,1.41001584]
[1736989355808,1.89656785,710.23,709.18,1.41001584]
[1736989356012,1.89656785,710.22,709.18,1.41001584]
[1736989356214,1.89656785,710.21,709.18,1.41001584]
[1736989356517,1.89656785,710.2,709.18,4.80301584]
[1736989356712,1.89656785,710.19,709.18,4.80301584]
[1736989356912,1.89656785,710.18,709.18,4.80301584]
[1736989357111,1.89656785,710.17,709.18,4.80301584]
[1736989357309,1.89656785,710.16,709.18,4.80301584]
[1736989357615,1.89656785,710.15,709.18,4.80301584]
[1736989357808,1.89656785,710.14,709.18,4.80301584]
[1736989358012,1.33120252,710.6,709.18,4.80301584]
[1736989358013,1.13813654,710.13,709.18,4.80301584]
[1736989358214,1.33120252,710.6,709.18,4.80301584]
[1736989358411,3.11039219,710.59,709.18,4.80301584]
[1736989358616,3.11039219,710.58,709.18,4.80301584]
[1736989358816,1.04975023,710.51,709.18,3.67501584]
[1736989359016,3.11039219,710.5,709.18,3.67501584]
[1736989359207,3.11039219,710.49,709.18,3.67501584]
[1736989359410,3.11039219,710.48,709.18,3.67501584]
[1736989359613,3.11039219,710.47,709.18,3.67501584]
[1736989359917,4.16014242,710.46,709.18,3.67501584]
[1736989360112,3.11037347,710.45,709.18,3.67501584]
[1736989360309,3.11037347,710.44,709.18,3.67501584]
[1736989360510,3.11037347,710.43,709.18,3.67501584]
[1736989360712,3.11037347,710.42,709.18,3.67501584]
[1736989360910,3.11037347,710.41,709.18,5.74801584]
[1736989361114,3.11037347,710.4,709.18,5.74801584]
[1736989361315,3.11037347,710.39,709.18,5.74801584]
[1736989361509,3.11037347,710.38,709.18,5.74801584]
[1736989361715,3.11037347,710.37,709.18,5.74801584]
[1736989361911,3.11037347,710.36,709.18,5.74801584]
[1736989362212,3.11037347,710.35,709.18,5.74801584]
[1736989362417,3.11037347,710.34,709.18,5.74801584]
[1736989362613,3.11037347,710.33,709.18,5.74801584]
[1736989362815,3.11037347,710.32,709.18,5.74801584]
[1736989363118,3.11037347,710.31,709.18,5.74801584]
[1736989363310,3.11037347,710.3,709.18,5.74801584]
[1736989363513,3.11037347,710.29,709.18,5.74801584]
[1736989363713,3.11037347,710.28,709.18,5.74801584]
[1736989363918,3.11037347,710.27,709.18,6.80186808]
[1736989364214,3.11037347,710.26,709.18,6.80186808]
[1736989364415,3.11037347,710.25,709.18,6.80186808]
[1736989364720,3.11037347,710.24,709.19,1.05385224]
[1736989364920,3.11037347,710.23,709.2,0.28200789]
[1736989365219,3.11037347,710.22,709.2,0.28200789]
[1736989365419,1.89676075,710.21,709.2,0.28200789]
[1736989365713,1.89676075,710.2,709.2,0.28200789]
[1736989365919,1.89676075,710.19,709.2,0.28200789]
[1736989366219,1.89676075,710.18,709.2,0.28200789]
[1736989366413,1.04975023,710.38,709.2,0.28200789]
[1736989366414,1.89676075,710.17,709.2,0.28200789]
[1736989366619,1.04975023,710.38,709.2,0.28200789]
[1736989366913,3.1105105,710.37,709.2,0.28200789]
[1736989367117,3.1105105,710.36,709.2,0.28200789]
[1736989367317,3.1105105,710.35,709.2,0.28200789]
[1736989367622,0.28145229,710.6,709.2,0.28200789]
[1736989367623,3.1105105,710.34,709.21,1.05385224]
[1736989367822,3.11059492,710.33,709.21,1.05385224]
[1736989368021,3.11059492,710.32,709.21,1.05385224]
[1736989368222,3.11059492,710.31,709.22,0.28199994]
[1736989368422,3.11059492,710.3,709.22,0.28199994]
[1736989368626,3.11059492,710.29,709.23,1.05385224]
[1736989368817,3.11059492,710.28,709.24,0.28199199]
[1736989369123,3.11059492,710.27,709.24,0.28199199]
[1736989369420,3.11059492,710.26,709.24,0.28199199]
[1736989369625,3.11059492,710.25,709.26,1.05385224]
[1736989369822,3.11059492,710.24,709.27,0.28198006]
[1736989370021,3.11059492,710.23,709.27,0.28198006]
[1736989370223,1.89689649,710.22,709.27,1.61898006]
[1736989370421,1.89689649,710.21,709.27,1.61898006]
[1736989370616,1.89689649,710.2,709.27,1.61898006]
[1736989370820,1.89689649,710.19,709.27,1.61898006]
[1736989371017,1.89689649,710.18,709.27,2.74598006]
[1736989371223,1.89689649,710.17,709.27,2.74598006]
[1736989371523,1.89689649,710.16,709.27,2.74598006]
[1736989371725,1.13833497,710.15,709.27,2.74598006]
[1736989371926,1.13833497,710.14,709.27,2.74598006]
[1736989372124,1.04975023,710.38,709.27,2.74598006]
[1736989372325,3.11200285,710.37,709.27,2.74598006]
[1736989372526,3.11200285,710.36,709.27,2.74598006]
[1736989372726,3.11200285,710.35,709.27,2.74598006]
[1736989373025,3.11200285,710.34,709.27,2.74598006]
[1736989373227,3.11200285,710.33,709.27,2.74598006]
[1736989373426,3.11200285,710.32,709.27,2.74598006]
[1736989373727,3.11200285,710.31,709.27,2.74598006]
[1736989374027,3.11200285,710.3,709.27,2.74598006]
[1736989374325,1.04975023,710.38,709.27,2.74598006]
[1736989374326,3.11200285,710.29,709.27,2.74598006]
[1736989374519,3.11200285,710.28,709.27,2.74598006]
[1736989374719,3.11200285,710.27,709.27,2.74598006]
[1736989374925,1.13885034,710.26,709.27,2.74598006]
[1736989375124,1.89813015,710.25,709.27,2.74598006]
[1736989375325,1.89813015,710.24,709.27,2.74598006]
[1736989375522,1.89813015,710.23,709.27,2.74598006]
[1736989375726,1.89813015,710.22,709.27,2.74598006]
[1736989375926,1.89813015,710.21,709.27,2.74598006]
[1736989376127,1.13885034,710.2,709.27,2.74598006]
[1736989376328,1.04975023,710.46,709.27,2.74598006]
[1736989376523,3.11403778,710.45,709.27,2.74598006]
[1736989376730,3.11403778,710.44,709.27,2.74598006]
[1736989376923,3.11403778,710.43,709.27,2.74598006]
[1736989377128,3.11403778,710.42,709.27,2.74598006]
[1736989377429,3.11403778,710.41,709.27,2.74598006]
[1736989377729,3.11403778,710.4,709.27,2.74598006]
[1736989377922,3.11403778,710.39,709.27,2.74598006]
[1736989378123,3.11403778,710.38,709.27,2.74598006]
[1736989378325,3.11403778,710.37,709.27,2.74598006]